{"text_format":"1","workbook":"xlsx","n_sheets":1,"sheets":["Feuil1"],"not_rendered":{"charts":0,"images":0,"macros":1,"external_links":0,"defined_names":0,"comments":0,"pivot_tables":0},"unopened":[],"bounds":{"document_bytes":16777216,"sheet_cells":100000,"rows_first":2000,"rows_last":500,"rows_between":2000,"halvings":0,"cell_chars":16384,"cell_head_chars":4096},"cells_cut":0,"cells_raw":0,"read":"whole","date_system":"1900"}

{"sheet":"Feuil1","index":0,"n_rows":14,"n_cols":6,"rows_kept":14,"cut":false,"hidden":false,"merged":[]}
[null,"président","vice-président","ancien-président","président-délégué","vice-président-délégué"]
["Dupont président",{"$f":"retrouve($A2,B$1)","v":1},{"$f":"retrouve($A2,C$1)","v":0},{"$f":"retrouve($A2,D$1)","v":0},{"$f":"retrouve($A2,E$1)","v":0},{"$f":"retrouve($A2,F$1)","v":0}]
["Durand président, vice-président",{"$f":"retrouve($A3,B$1)","v":1},{"$f":"retrouve($A3,C$1)","v":1},{"$f":"retrouve($A3,D$1)","v":0},{"$f":"retrouve($A3,E$1)","v":0},{"$f":"retrouve($A3,F$1)","v":0}]
["Dubois vice-président",{"$f":"retrouve($A4,B$1)","v":0},{"$f":"retrouve($A4,C$1)","v":1},{"$f":"retrouve($A4,D$1)","v":0},{"$f":"retrouve($A4,E$1)","v":0},{"$f":"retrouve($A4,F$1)","v":0}]
["Durieu ancien-président, vice-président-délégué",{"$f":"retrouve($A5,B$1)","v":0},{"$f":"retrouve($A5,C$1)","v":0},{"$f":"retrouve($A5,D$1)","v":1},{"$f":"retrouve($A5,E$1)","v":0},{"$f":"retrouve($A5,F$1)","v":1}]
["Duverger président-délégué, ancien-président",{"$f":"retrouve($A6,B$1)","v":0},{"$f":"retrouve($A6,C$1)","v":0},{"$f":"retrouve($A6,D$1)","v":1},{"$f":"retrouve($A6,E$1)","v":1},{"$f":"retrouve($A6,F$1)","v":0}]
[]
[]
[]
[null,null,"Fonction personnalisée retrouve "]
[null,null,"Syntaxe =  retrouve(chaine à traiter; mot à trouver)"]
[]
[null,null,"Alt + F11 pour ouvrir l'éditeur VBA"]
[null,null,"Aller dans Module 1 pour voir le code de la fonction commenté"]